bitfinex/quotes_ETHUSD_20250622
["timestamp","ask_amount","ask_price","bid_price","bid_amount"]
[1750576249178,24.66723685,2287.8,2287.6,3.49705674]
[1750576249376,40.0,2287.6,2287.5,3.49723786]
[1750576249619,55.49283685,2287.6,2287.5,3.49723786]
[1750576251093,17.111,2287.6,2287.5,3.49723786]
[1750576251312,0.821,2288.1,2288.0,3.49650349]
[1750576251482,47.111,2288.1,2288.0,3.49650349]
[1750576251827,51.50534887,2288.1,2288.0,3.49650349]
[1750576252712,21.50534887,2288.1,2288.0,3.49650349]
[1750576252943,51.50534887,2288.1,2288.0,3.49650349]
[1750576253693,47.111,2288.1,2288.0,3.49650349]
[1750576253895,40.0,2288.1,2288.0,3.49650349]
[1750576254093,47.112,2288.1,2288.0,3.49650349]
[1750576254292,40.0,2288.1,2288.0,3.49650349]
[1750576254533,47.112,2288.1,2288.0,3.49650349]
[1750576254735,37.112,2288.1,2288.0,3.49650349]
[1750576255038,47.112,2288.1,2288.0,3.49650349]
[1750576261771,54.66823685,2288.1,2288.0,3.49650349]
[1750576264864,47.111,2288.1,2288.0,3.49650349]
[1750576269172,37.111,2288.1,2288.0,3.49650349]
[1750576272014,37.111,2288.1,2288.0,3.49650349]
[1750576272410,40.0,2288.0,2287.7,1.834]
[1750576272593,14.66623685,2287.9,2287.7,1.834]
[1750576272906,30.0,2287.7,2287.6,3.49700128]
[1750576273111,44.66623685,2287.7,2287.6,3.49700128]
[1750576273665,44.66623685,2287.7,2287.5,3.49721995]
[1750576273908,30.0,2287.6,2287.5,3.49721995]
[1750576275320,10.7775,2288.0,2287.8,3.49677041]
[1750576275607,47.11,2287.9,2287.8,3.49677041]
[1750576276378,10.0,2287.9,2287.8,3.49677041]
[1750576276578,17.11,2287.9,2287.8,4.27177041]
[1750576277176,10.0,2288.2,2288.1,3.49635068]
[1750576277371,47.11,2288.2,2288.1,3.49635068]
[1750576278319,40.0,2288.2,2288.1,3.49635068]
[1750576278484,47.11,2288.2,2288.1,3.49635068]
[1750576279717,51.50434887,2288.2,2288.0,3.49644999]
[1750576280021,47.55623685,2288.1,2288.0,3.49644999]
[1750576280194,18.37693685,2288.1,2287.6,2.6214]
[1750576280512,17.11,2288.0,2287.6,2.6214]
[1750576281336,17.11,2288.0,2287.9,3.49665632]
[1750576281878,10.0,2287.8,2287.5,3.49723036]
[1750576282216,17.11,2287.7,2287.6,3.49698235]
[1750576284606,10.0,2287.7,2287.6,3.49698235]
[1750576288538,40.0,2287.7,2287.6,3.49698235]
[1750576288837,30.0,2287.6,2287.5,3.4972146]
[1750576289151,7.11,2287.6,2287.5,3.4972146]
[1750576290123,10.0,2287.7,2287.6,4.32581488]
[1750576295370,10.0,2287.7,2287.6,3.49711488]
[1750576297360,10.0,2287.7,2287.5,3.71261126]
[1750576297361,10.0,2287.7,2287.5,3.71258243]
[1750576297926,10.0,2287.7,2287.6,3.49711488]
[1750576298449,10.0,2287.7,2287.5,3.71260878]
[1750576298961,9.6293,2287.6,2287.5,3.71260878]
[1750576299163,20.1793,2287.6,2287.0,7.18173343]
[1750576299364,10.0,2287.2,2287.1,3.49779181]
[1750576299665,17.109,2287.2,2287.1,3.49779181]
[1750576305880,30.0,2287.7,2287.3,0.7525]
[1750576306091,10.0,2287.7,2287.6,3.49711488]
[1750576306389,17.11,2287.7,2287.6,3.49711488]
[1750576307481,10.0,2287.7,2287.6,3.49711488]
[1750576307658,17.11,2287.7,2287.6,3.49711488]
[1750576311173,17.109,2287.7,2287.6,3.49711488]
[1750576311374,27.13176054,2287.7,2287.5,3.49721782]
[1750576311697,7.109,2287.6,2287.5,3.49721782]
[1750576312814,10.0,2287.7,2287.6,3.49711488]
[1750576313049,17.109,2287.7,2287.6,3.49711488]
[1750576316623,10.0,2287.7,2287.6,3.49711488]
[1750576316828,17.109,2287.7,2287.6,3.49711488]
[1750576317343,30.8148,2288.0,2287.3,0.96789666]
[1750576317506,37.109,2287.9,2287.7,3.49696201]
[1750576317710,10.0,2287.8,2287.7,3.49696201]
[1750576318915,0.8148,2288.0,2287.7,3.49696201]
[1750576319128,0.8146,2288.2,2288.0,3.49650349]
[1750576319298,48.94608369,2288.1,2288.0,3.49650349]
[1750576319831,40.0,2288.0,2287.9,3.49661489]
[1750576322597,30.0,2287.9,2287.8,3.49674021]
[1750576323541,7.108,2287.9,2287.8,3.49674021]
[1750576326302,10.0,2287.8,2287.7,3.49691545]
[1750576326637,10.0,2287.8,2287.6,3.49705548]
[1750576327009,17.108,2287.7,2287.6,3.49705548]
[1750576327536,17.108,2287.7,2287.6,3.49711488]
[1750576332211,10.8252,2287.6,2287.0,0.8091]
[1750576332406,17.55623685,2287.3,2287.2,3.49772647]
[1750576332630,54.66323685,2287.3,2287.2,3.49772647]
[1750576333255,17.107,2287.3,2287.2,3.49772647]
[1750576338043,10.0,2287.3,2287.2,3.49772647]
[1750576338251,30.0,2287.9,2287.8,3.49680916]
[1750576338579,47.107,2287.9,2287.8,3.49680916]
[1750576338966,0.7837,2288.1,2288.0,3.49650349]
[1750576339153,37.108,2288.1,2288.0,3.49650349]
[1750576339359,40.0,2288.1,2288.0,3.49650349]
[1750576339554,47.108,2288.1,2288.0,3.49650349]
[1750576340447,40.0,2288.1,2288.0,3.49650349]
[1750576340649,37.108,2288.1,2288.0,3.49650349]
[1750576341683,30.0,2288.1,2288.0,3.49650349]
[1750576341883,7.107,2288.1,2288.0,3.49650349]
[1750576342180,47.107,2288.1,2288.0,3.49650349]
[1750576344084,54.66323685,2288.1,2288.0,3.49650349]
[1750576344684,47.107,2288.1,2288.0,3.49650349]
[1750576347694,40.0,2288.1,2288.0,3.49650349]
[1750576347992,47.106,2288.1,2288.0,3.49650349]
[1750576348562,30.0,2288.1,2288.0,3.49650349]
[1750576348763,47.106,2288.1,2288.0,3.49650349]
[1750576350270,40.0,2288.1,2288.0,3.49650349]
[1750576350484,47.106,2288.1,2288.0,3.49650349]
[1750576353004,47.106,2288.1,2287.7,1.04209666]
[1750576353005,10.0,2288.0,2287.8,3.49670812]
[1750576353217,10.0,2287.9,2287.8,3.49670812]
[1750576353415,17.106,2287.9,2287.8,4.32340812]
[1750576355793,17.106,2287.9,2287.8,3.49670812]
[1750576362029,17.105,2287.9,2287.8,3.49670812]
[1750576364534,10.0,2287.9,2287.8,4.27874253]
[1750576367037,0.7531,2288.4,2288.3,3.49604509]
[1750576367238,0.7531,2288.4,2288.2,3.49618166]
[1750576367239,0.7978,2288.7,2288.6,3.49558682]
[1750576367401,37.9018,2288.7,2288.6,3.49558682]
[1750576367601,47.9018,2288.7,2288.6,3.49558682]
[1750576368300,47.104,2288.7,2288.6,3.49558682]
[1750576372137,40.0,2288.7,2288.6,3.49558682]
[1750576372320,10.0,2288.7,2288.6,3.49558682]
[1750576372524,17.103,2288.7,2288.6,3.49558682]
[1750576373738,30.0,2288.6,2288.4,0.8234]
[1750576373907,10.0,2288.5,2288.4,3.49574291]
[1750576374635,7.55623685,2288.7,2288.6,3.49558682]
[1750576374850,54.65923685,2288.7,2288.6,3.49558682]
[1750576375515,30.0,2288.6,2288.5,3.49573956]
[1750576382375,30.0,2288.6,2288.2,4.31951604]
[1750576382376,10.0,2288.5,2288.2,4.31951604]
[1750576382547,14.65823685,2288.4,2288.1,3.71173593]
[1750576382749,14.65823685,2288.4,2288.2,3.49619788]
[1750576383276,24.65823685,2288.4,2288.3,3.49604509]
[1750576383879,0.8115,2288.2,2287.9,3.49655118]
[1750576384180,10.0,2288.0,2287.9,3.49655118]
[1750576384355,10.0,2288.0,2287.8,3.4967468]
[1750576384676,17.101,2287.9,2287.8,3.4967468]
[1750576393460,17.101,2287.9,2287.2,0.78046913]
[1750576393461,30.0,2287.7,2287.0,0.8102]
[1750576393694,30.0,2287.7,2287.2,3.49772647]
[1750576393695,30.0,2287.3,2287.2,3.49772647]
[1750576393871,7.101,2287.3,2287.2,3.49772647]
[1750576398505,27.101,2287.3,2287.1,3.49784848]
[1750576398679,17.58941777,2287.3,2287.0,3.49801891]
[1750576399005,17.101,2287.3,2287.2,3.49772647]
[1750576399799,30.0,2287.2,2287.1,3.49783234]
[1750576399965,10.0,2287.1,2286.9,3.49809336]
[1750576400168,17.102,2287.0,2286.9,3.49809336]
[1750576402316,10.0,2286.9,2286.8,3.49824227]
[1750576406597,7.103,2286.9,2286.8,3.49824227]
[1750576406775,17.103,2286.9,2286.8,3.49824227]
[1750576407208,7.103,2286.9,2286.8,3.49824227]
[1750576407411,7.103,2286.9,2286.5,1.19071006]
[1750576407614,7.103,2286.9,2286.8,3.49833828]
[1750576412788,10.0,2287.0,2286.9,3.49818531]
[1750576412989,40.0,2287.1,2287.0,3.49802654]
[1750576413183,47.103,2287.1,2287.0,3.49802654]
[1750576413883,47.103,2287.1,2286.9,3.49812169]
[1750576414085,10.0,2287.0,2286.9,3.49812169]
[1750576414418,10.0,2287.0,2286.7,3.49845672]
[1750576414419,10.0,2287.0,2286.8,3.4982691]
[1750576414624,7.103,2286.9,2286.8,3.4982691]
[1750576414923,17.103,2286.9,2286.8,3.4982691]
[1750576415522,10.0,2286.9,2286.8,3.4982691]
[1750576415727,17.103,2286.9,2286.8,3.4982691]
[1750576416022,30.0,2286.8,2286.5,0.43521006]
[1750576416193,30.0,2286.6,2286.5,0.43521006]
[1750576416521,30.768,2286.6,2286.5,0.43521006]
[1750576419639,30.0,2286.6,2286.5,3.93400734]
[1750576419793,37.104,2286.6,2286.5,3.93400734]
[1750576421139,47.104,2286.6,2286.5,3.93400734]
[1750576421311,47.104,2286.6,2286.5,0.43521006]
[1750576421645,51.49834887,2286.6,2286.5,0.43521006]
[1750576422125,47.104,2286.6,2286.5,0.43521006]
[1750576422322,47.104,2286.6,2286.5,3.93400734]
[1750576423333,47.104,2286.6,2286.5,0.43521006]
[1750576423733,47.872,2286.6,2286.5,0.43521006]
[1750576426297,47.104,2286.6,2286.5,3.93400734]
[1750576427502,47.104,2286.6,2286.5,0.43521006]
[1750576428836,47.104,2286.6,2286.5,3.93400734]
[1750576429035,47.104,2286.6,2286.5,0.43521006]
[1750576429228,51.49834887,2286.6,2286.5,0.43521006]
[1750576429935,47.104,2286.6,2286.5,3.93400734]
[1750576432039,40.0,2286.6,2286.5,3.93400734]
[1750576432338,47.104,2286.6,2286.5,3.93400734]
[1750576434321,54.66023685,2286.6,2286.5,3.93400734]
[1750576434942,54.66023685,2286.6,2286.5,0.43521006]
[1750576435439,59.05458572,2286.6,2286.5,0.43521006]
[1750576436154,59.05458572,2286.6,2286.5,3.93400734]
[1750576436352,54.66023685,2286.6,2286.5,0.43521006]
[1750576437650,24.66023685,2286.6,2286.5,0.43521006]
[1750576437954,54.66023685,2286.6,2286.5,0.43521006]
[1750576438711,55.21023685,2286.6,2286.5,0.43521006]
[1750576439023,59.60458572,2286.6,2286.5,0.43521006]
[1750576439648,29.60458572,2286.6,2286.5,0.43521006]
[1750576439852,59.60458572,2286.6,2286.5,0.43521006]
[1750576440784,60.88258572,2286.6,2286.5,0.43521006]
[1750576441078,61.65718572,2286.6,2286.5,0.43521006]
[1750576441961,57.26283685,2286.6,2286.5,0.43521006]
[1750576442265,56.48823685,2286.6,2286.5,0.43521006]
[1750576445540,10.0,2286.6,2286.5,3.93400734]
[1750576445777,0.22858318,2286.8,2286.7,3.49849127]
[1750576446068,10.0,2286.6,2286.5,3.93400734]
[1750576446369,37.103,2286.6,2286.5,3.93400734]
[1750576446574,47.103,2286.6,2286.5,3.93400734]
[1750576449167,47.103,2286.6,2286.5,0.43521006]
[1750576449874,47.103,2286.6,2286.5,3.93400734]
[1750576455870,51.49734887,2286.6,2286.5,0.43521006]
[1750576456443,52.28534887,2286.6,2286.5,0.43521006]
[1750576458985,51.49734887,2286.6,2286.5,3.93400734]
[1750576459190,40.0,2286.6,2286.5,3.63400734]
[1750576459355,47.103,2286.6,2286.5,3.63400734]
[1750576462585,47.103,2286.6,2286.5,0.13521006]
[1750576462793,51.49734887,2286.6,2286.5,0.13521006]
[1750576463590,51.49734887,2286.6,2286.5,3.63400734]
[1750576463895,47.103,2286.6,2286.5,0.13521006]
[1750576465113,47.9272,2286.6,2286.5,0.13521006]
[1750576466205,48.4772,2286.6,2286.5,0.13521006]
[1750576467898,40.0,2286.6,2286.5,3.63400734]
[1750576468079,47.103,2286.6,2286.5,3.63400734]
[1750576468608,17.102,2286.6,2286.5,4.42570734]
[1750576468805,10.0,2286.6,2286.5,4.42570734]
[1750576468991,17.102,2286.6,2286.5,4.42570734]
[1750576470510,10.0,2286.6,2286.5,4.42570734]
[1750576470712,17.102,2286.6,2286.5,4.42570734]
[1750576471485,47.102,2286.6,2286.5,0.13521006]
[1750576471819,51.49634887,2286.6,2286.5,0.13521006]
[1750576472734,52.27154887,2286.6,2286.5,0.13521006]
[1750576475121,47.102,2286.6,2286.5,3.63400734]
[1750576477189,40.0,2286.6,2286.5,3.63400734]
[1750576477391,47.102,2286.6,2286.5,3.63400734]
[1750576479792,40.0,2286.6,2286.5,3.63400734]
[1750576480126,47.102,2286.6,2286.5,3.63400734]
[1750576482435,40.0,2286.6,2286.5,3.63400734]
[1750576482722,54.65823685,2286.6,2286.5,3.63400734]
[1750576483096,47.102,2286.6,2286.5,3.63400734]
[1750576484031,47.102,2286.6,2286.5,0.13521006]
[1750576484238,51.49634887,2286.6,2286.5,0.13521006]
[1750576484839,59.05258572,2286.6,2286.5,0.13521006]
[1750576486315,51.49634887,2286.6,2286.5,0.13521006]
[1750576486514,51.49634887,2286.6,2286.5,3.63400734]
[1750576486710,47.102,2286.6,2286.5,3.63400734]
[1750576487850,17.102,2286.6,2286.5,3.63400734]
[1750576488051,47.102,2286.6,2286.5,3.63400734]
[1750576490857,54.65823685,2286.6,2286.5,3.63400734]
[1750576491831,55.48663685,2286.6,2286.5,3.63400734]
[1750576493482,54.65823685,2286.6,2286.5,3.63400734]
[1750576494766,47.101,2286.6,2286.5,3.63400734]
[1750576495079,17.101,2286.6,2286.5,3.63400734]
[1750576495280,47.101,2286.6,2286.5,3.63400734]
[1750576496457,54.65723685,2286.6,2286.5,3.63400734]
[1750576498086,24.65723685,2286.6,2286.5,3.63400734]
[1750576498284,55.43823685,2286.6,2286.5,0.13521006]
[1750576498676,55.66681279,2286.6,2286.5,0.13521006]
[1750576501862,37.78481279,2286.6,2286.5,0.13521006]
[1750576502063,37.101,2286.6,2286.5,0.13521006]
[1750576502311,40.0,2286.6,2286.5,3.63400734]
[1750576502597,37.101,2286.6,2286.5,3.63400734]
[1750576502895,47.101,2286.6,2286.5,3.63400734]
[1750576503273,54.65723685,2286.6,2286.5,0.13521006]
[1750576503490,55.23336879,2286.6,2286.5,0.13521006]
[1750576503684,56.01146879,2286.6,2286.5,0.13521006]
[1750576507208,47.101,2286.6,2286.5,3.63400734]
[1750576507708,47.101,2286.6,2286.5,0.13521006]
[1750576508517,47.101,2286.6,2286.5,3.63400734]
[1750576508895,40.0,2286.6,2286.5,0.13521006]
[1750576509098,47.101,2286.6,2286.5,3.63400734]
[1750576509305,40.0,2286.6,2286.5,3.63400734]
[1750576509498,47.101,2286.6,2286.5,3.63400734]
[1750576509819,47.101,2286.6,2286.5,0.13521006]
[1750576510820,51.49534887,2286.6,2286.5,0.13521006]
[1750576511331,47.101,2286.6,2286.5,3.63400734]
[1750576511486,1.47179158,2286.9,2286.8,3.49833828]
[1750576511487,30.22857641,2286.9,2286.8,3.49833828]
[1750576511691,37.32957641,2286.9,2286.8,3.49833828]
[1750576511889,30.0,2287.4,2286.8,4.26883828]
[1750576512189,40.0,2287.2,2287.1,3.49787941]
[1750576512416,47.101,2287.2,2287.1,3.49787941]
[1750576512822,37.101,2287.2,2287.1,3.49787941]
[1750576513126,47.101,2287.2,2287.1,3.49787941]
[1750576513285,40.0,2287.2,2287.1,3.49787941]
[1750576513496,17.101,2287.2,2287.1,3.49787941]
[1750576513732,47.101,2287.2,2287.1,3.49787941]
[1750576514434,40.0,2287.2,2287.1,3.49787941]
[1750576514622,40.0,2287.2,2287.1,4.26837941]
[1750576514623,47.101,2287.2,2287.1,4.26837941]
[1750576515694,7.78480414,2287.7,2287.4,3.49742065]
[1750576515917,37.1,2287.6,2287.5,4.26776775]
[1750576516120,30.0,2287.6,2287.5,4.26776775]
[1750576516315,47.1,2287.6,2287.5,4.26776775]
[1750576516644,47.1,2287.6,2287.5,3.49726775]
[1750576517503,3.4960841,2288.3,2287.5,3.49726775]
[1750576517504,39.38223685,2288.1,2287.9,3.49655026]
[1750576517821,37.099,2288.0,2287.9,4.26355026]
[1750576519008,30.0,2288.0,2287.9,4.26355026]
[1750576519208,37.099,2288.0,2287.9,4.26355026]
[1750576519414,30.0,2288.0,2287.9,4.26355026]
[1750576519684,1.826,2288.1,2288.0,3.49650349]
[1750576519685,41.826,2288.1,2288.0,3.49650349]
[1750576519867,48.925,2288.1,2288.0,3.49650349]
[1750576520214,10.0,2288.1,2288.0,3.49650349]
[1750576520450,17.099,2288.1,2288.0,3.49650349]
[1750576520634,10.0,2288.1,2288.0,3.49650349]
[1750576520966,7.55623685,2288.3,2288.2,3.49619788]
[1750576521117,17.099,2288.3,2288.2,4.30639788]
[1750576521318,10.0,2288.3,2288.2,4.30639788]
[1750576524315,0.22845132,2288.6,2288.5,3.49573956]
[1750576524518,1.46177254,2289.7,2289.3,3.49442954]
[1750576524519,30.0,2289.5,2289.3,3.49442954]
[1750576524752,37.114,2289.4,2289.3,3.49442954]
[1750576525357,47.114,2289.4,2289.3,3.49442954]
[1750576525659,7.118,2289.7,2289.6,3.49391357]
[1750576525864,47.118,2289.7,2289.6,3.49391357]
[1750576526035,40.0,2289.7,2289.6,3.49391357]
[1750576526232,37.78456295,2290.0,2289.9,3.49360234]
[1750576526544,44.67423685,2290.0,2289.9,3.49360234]
[1750576526737,37.118,2290.0,2289.8,3.49370696]
[1750576526956,40.0,2289.9,2289.8,3.49370696]
[1750576527142,40.0,2289.9,2289.8,4.30390696]
[1750576527369,47.118,2289.9,2289.8,4.30390696]
[1750576527878,7.78455117,2290.2,2290.0,3.49344978]
[1750576527879,30.0,2290.1,2290.0,3.49344978]
[1750576528172,37.55623685,2290.1,2290.0,3.49344978]
[1750576528481,30.0,2290.0,2289.8,4.30383115]
[1750576528892,40.0,2289.8,2289.2,0.8132]
[1750576529091,30.0,2289.4,2289.0,0.8132]
[1750576529677,30.0,2289.1,2289.0,4.30811555]
[1750576531576,7.125,2289.2,2289.1,3.49482329]
[1750576531777,7.123,2289.3,2289.0,4.30811884]
[1750576531965,30.0,2289.2,2289.1,3.49482329]
[1750576532367,7.124,2289.3,2289.2,3.49467062]
[1750576532567,37.124,2289.3,2289.2,3.49467062]
[1750576534083,7.124,2289.3,2289.2,3.49467062]
[1750576534980,47.121,2289.4,2289.3,3.49438626]
[1750576535163,10.0,2289.4,2289.3,3.49438626]
[1750576539352,10.0,2289.4,2289.2,3.49460534]
[1750576540054,30.0,2289.3,2289.1,0.21539666]
[1750576540285,47.121,2289.2,2288.5,0.7895]
[1750576540462,30.0,2289.0,2288.6,3.49555561]
[1750576540657,40.0,2288.8,2288.5,4.28517532]
[1750576540859,40.0,2288.8,2288.4,3.71127541]
[1750576540860,7.126,2288.7,2288.4,3.49576533]
[1750576541175,30.0,2288.6,2288.3,15.18261906]
[1750576541485,30.0,2288.4,2288.3,15.18261906]
[1750576542152,10.0,2288.8,2288.3,17.12945056]
[1750576542352,10.0,2288.7,2288.6,3.49558682]
[1750576542552,10.0,2288.7,2288.6,4.31308682]
[1750576542749,7.131,2288.9,2288.8,3.49528137]
[1750576542952,30.0,2289.1,2288.9,3.49503406]
[1750576543189,37.131,2289.0,2288.9,3.49503406]
[1750576544289,7.131,2289.0,2288.9,3.49503406]
[1750576544588,17.131,2289.0,2288.9,3.49503406]
[1750576545854,10.0,2289.0,2288.9,3.49503406]
[1750576546068,17.131,2289.0,2288.9,3.49503406]
[1750576546494,10.0,2289.0,2288.9,3.49503406]
[1750576546681,17.131,2289.0,2288.9,3.49503406]
[1750576547194,10.0,2288.9,2288.8,3.4952294]
[1750576547593,7.131,2289.0,2288.9,3.49512866]
[1750576547784,17.129,2289.0,2288.8,3.49518]
[1750576548509,17.129,2289.0,2288.9,3.49512866]
[1750576549999,40.0,2288.9,2288.8,3.49521315]
[1750576550196,30.0,2288.9,2288.8,3.49521315]
[1750576556196,30.0,2288.9,2288.7,3.4953672]
[1750576556512,7.122,2288.8,2288.7,3.4953672]
[1750576557066,7.122,2288.8,2288.6,3.49553744]
[1750576557281,30.0,2288.7,2288.5,3.71108906]
[1750576557485,7.121,2288.6,2288.5,3.71108906]
[1750576557686,7.121,2288.6,2288.5,3.4956924]
[1750576559141,7.121,2288.6,2288.3,11.68662029]
[1750576559338,30.0,2288.5,2288.3,11.68662029]
[1750576559489,49.03625823,2288.4,2288.3,11.68662029]
[1750576559692,40.0,2288.5,2288.4,3.49589232]
[1750576559988,30.0,2288.4,2288.3,3.4959843]
[1750576560406,30.0,2288.4,2288.2,3.49618904]
[1750576560590,7.122,2288.3,2288.0,3.5033729]
[1750576560926,7.122,2288.3,2288.0,0.006905]
[1750576560927,30.0,2288.1,2288.0,0.006905]
[1750576561097,47.122,2288.1,2288.0,0.006905]
[1750576561293,47.672,2288.1,2288.0,0.006905]
[1750576561495,48.4619,2288.1,2288.0,0.006905]
[1750576561721,52.85624887,2288.1,2288.0,0.006905]
[1750576563035,15.18424887,2288.1,2288.0,0.006905]
[1750576563211,47.126,2288.1,2288.0,0.006905]
[1750576565348,47.126,2288.1,2288.0,3.50340849]
[1750576566649,40.0,2288.1,2288.0,3.50340849]
[1750576566839,47.127,2288.1,2288.0,3.50340849]
[1750576567230,47.126,2288.1,2288.0,3.50340849]
[1750576568654,51.52034887,2288.1,2288.0,0.006905]
[1750576569030,51.52034887,2288.1,2288.0,3.50340849]
[1750576569951,47.126,2288.1,2288.0,3.50340849]
[1750576571152,47.126,2288.1,2288.0,0.006905]
[1750576571339,48.4909,2288.1,2288.0,0.006905]
[1750576572055,0.8149,2287.8,2287.2,3.49758811]
[1750576572215,0.8149,2287.8,2287.0,0.8141]
[1750576572216,30.0,2287.5,2287.4,3.49741326]
[1750576572414,30.0,2287.4,2287.3,3.49751288]
[1750576573252,29.9420903,2287.4,2287.3,3.49751288]
[1750576573423,30.0,2287.4,2287.3,3.49751288]
[1750576576658,7.126,2287.4,2287.3,3.49751288]
[1750576579029,30.0,2287.8,2287.7,3.49696201]
[1750576579225,37.125,2287.8,2287.7,3.49696201]
[1750576579446,47.125,2287.8,2287.7,3.49696201]
[1750576584953,40.0,2287.8,2287.7,3.49696201]
[1750576585163,47.12,2287.8,2287.7,3.49696201]
[1750576586190,51.51434887,2287.8,2287.7,3.49696201]
[1750576586845,10.0,2287.7,2287.6,3.49707212]
[1750576587047,10.0,2287.4,2287.2,3.49758819]
[1750576587363,47.12,2287.3,2287.2,3.49758819]
[1750576588806,22.29724887,2287.3,2287.2,3.49758819]
[1750576588975,30.0,2287.2,2287.1,3.49779203]
[1750576589502,10.0,2287.1,2286.5,5.53267243]
[1750576589702,7.121,2287.0,2286.9,3.49818531]
[1750576591483,40.0,2287.1,2287.0,3.49803235]
[1750576591686,47.12,2287.1,2287.0,3.49803235]
[1750576591884,37.12,2287.1,2287.0,3.49803235]
[1750576592083,21.3208344,2287.4,2287.3,3.49757355]
[1750576592335,60.2828344,2287.4,2287.3,3.49757355]
[1750576593164,48.962,2287.4,2287.3,3.49757355]
[1750576597426,18.962,2287.4,2287.3,3.49757355]
[1750576597613,48.962,2287.4,2287.3,3.49757355]
[1750576600545,18.962,2287.4,2287.3,3.49757355]
[1750576600739,48.962,2287.4,2287.3,3.49757355]
[1750576601750,41.842,2287.4,2287.3,3.49757355]
[1750576601966,48.956,2287.4,2287.3,3.49757355]
[1750576602868,12.08031027,2287.7,2287.6,3.49711488]
[1750576602869,0.44195001,2287.7,2287.6,3.49711488]
[1750576603014,0.44195001,2287.7,2287.6,4.29901488]
[1750576603629,7.143,2288.0,2287.7,3.49696201]
[1750576604721,10.0,2287.9,2287.7,3.49696201]
[1750576605253,19.53263458,2287.8,2287.7,3.49696201]
[1750576606320,12.38963458,2287.8,2287.7,3.49696201]
[1750576606526,19.53263458,2287.8,2287.7,4.19636872]
[1750576606927,19.53263458,2287.8,2287.7,3.49696201]
[1750576607153,19.53263458,2287.8,2287.7,4.29456201]
[1750576607637,2.38963458,2287.8,2287.7,4.29456201]
[1750576607824,9.53263458,2287.8,2287.7,4.29456201]
[1750576608026,2.38963458,2287.8,2287.7,4.29456201]
[1750576608230,12.38963458,2287.8,2287.7,5.09526838]
[1750576610007,19.53163458,2287.8,2287.7,3.49696201]
[1750576611858,12.38963458,2287.8,2287.7,3.49696201]
[1750576612062,2.38963458,2287.8,2287.7,3.49696201]
[1750576613463,2.38963458,2287.8,2287.7,4.30716201]
[1750576617719,2.38963458,2287.8,2287.7,3.49696201]
[1750576618078,34.53249386,2287.8,2287.7,3.49696201]
[1750576620739,30.0,2287.7,2287.3,0.7644]
[1750576620889,7.134,2287.6,2287.5,3.49726775]
[1750576626913,14.71090122,2287.6,2287.5,3.49726775]
[1750576630475,57.3873548,2287.6,2287.5,3.49726775]
[1750576632585,27.3873548,2287.6,2287.5,3.49726775]
[1750576632740,57.3873548,2287.6,2287.5,3.49726775]
[1750576638192,0.8126,2287.3,2287.1,3.49777257]
[1750576638493,59.61716122,2287.2,2287.0,3.49790644]
[1750576638688,7.57690122,2287.1,2287.0,3.49790644]
[1750576638896,37.57690122,2287.1,2287.0,3.49790644]
[1750576639789,37.58036841,2287.1,2287.0,3.49790644]
[1750576639991,10.0,2287.2,2287.1,3.49787941]
[1750576640196,47.12,2287.2,2287.1,4.62909485]
[1750576640394,17.12,2287.2,2287.1,4.62909485]
[1750576641107,10.0,2287.2,2287.1,4.62909485]
[1750576641303,31.841,2287.6,2287.5,3.49726775]
[1750576641597,40.0,2287.7,2287.6,3.49711488]
[1750576641903,47.12,2287.7,2287.6,3.49711488]
[1750576642106,37.12,2287.7,2287.6,3.49711488]
[1750576642463,47.12,2287.7,2287.6,3.49711488]
[1750576644824,40.0,2287.7,2287.6,3.49711488]
[1750576645285,47.118,2287.7,2287.6,3.49711488]
[1750576646007,17.118,2287.7,2287.6,3.49711488]
[1750576646210,47.118,2287.7,2287.6,3.49711488]
[1750576650448,17.118,2287.7,2287.6,3.49711488]
[1750576650663,47.118,2287.7,2287.6,3.49711488]
[1750576650961,47.114,2287.7,2287.6,3.49711488]
[1750576651129,47.112,2287.7,2287.6,3.49711488]
[1750576651451,17.112,2287.7,2287.6,3.49711488]
[1750576651654,47.112,2287.7,2287.6,3.49711488]
[1750576651863,40.0,2287.7,2287.6,3.49711488]
[1750576652064,30.0,2287.7,2287.6,5.43731382]
[1750576652422,30.0,2287.7,2287.6,5.65271048]
[1750576652831,2.38963458,2287.8,2287.7,3.49696201]
[1750576653068,17.115,2287.9,2287.8,3.49680916]
[1750576653233,10.0,2287.9,2287.8,4.76145733]
[1750576653829,41.841,2288.2,2288.1,3.49635068]
[1750576654029,0.22845501,2288.5,2288.4,3.49589232]
[1750576654238,31.841,2288.7,2288.6,3.49558682]
[1750576654533,48.957,2288.7,2288.6,3.49558682]
[1750576654734,38.957,2288.7,2288.6,3.49558682]
[1750576655053,38.958,2288.7,2288.6,3.49558682]
[1750576655250,38.957,2288.7,2288.6,3.49558682]
[1750576655454,40.0,2288.7,2288.6,3.49558682]
[1750576655656,30.0,2288.8,2288.7,3.49543408]
[1750576655976,37.58036841,2289.1,2289.0,3.49497597]
[1750576656144,44.69836841,2289.1,2289.0,3.49497597]
[1750576656342,54.69836841,2289.1,2289.0,3.49497597]
[1750576657169,44.69836841,2289.1,2289.0,3.49497597]
[1750576657571,54.69836841,2289.1,2289.0,3.49497597]
[1750576660688,47.58036841,2289.1,2289.0,3.49497597]
[1750576660850,24.69236841,2289.1,2289.0,3.49497597]
[1750576661052,54.69236841,2289.1,2289.0,3.49497597]
[1750576661954,24.69236841,2289.1,2289.0,3.49497597]
[1750576662161,54.69236841,2289.1,2289.0,3.49497597]
[1750576662374,47.58036841,2289.1,2289.0,3.49497597]
[1750576662569,47.58036841,2289.1,2289.0,4.19398556]
[1750576662570,54.69036841,2289.1,2289.0,4.19398556]
[1750576662770,54.69036841,2289.1,2289.0,3.49497597]